[Event "Gibraltar Masters 18th"]
[Site "Gibraltar"]
[Date "2020.01.28"]
[Round "8.45"]
[White "Trent, Lawrence"]
[Black "Petrov, Martin"]
[Result "1/2-1/2"]
[ECO "B51"]
[WhiteElo "2383"]
[BlackElo "2504"]
[PlyCount "155"]
[EventDate "2020.01.21"]
[EventType "swiss"]
[EventRounds "10"]
[EventCountry "GGB"]
[SourceTitle "BritBase"]
[Source "John Saunders"]
[SourceDate "2021.06.05"]
[SourceVersion "1"]
[SourceVersionDate "2021.06.05"]
[SourceQuality "1"]
[TimeControl "40/100:0"]
[WhiteClock "0:51:24"]
[BlackClock "0:19:28"]

1. e4 {[%emt 0:00:00]} c5 {[%emt 0:00:00]} 2. Nf3 {[%emt 0:00:00]} d6 {[%emt 0:
00:00]} 3. Bb5+ {[%emt 0:01:09]} Nd7 {[%emt 0:00:00]} 4. Ba4 {[%emt 0:00:00]}
Ngf6 {[%emt 0:00:00]} 5. O-O {[%emt 0:00:00]} e6 {[%emt 0:00:00]} 6. c4 {
[%emt 0:00:00]} Be7 {[%emt 0:00:00]} 7. Nc3 {[%emt 0:00:00]} O-O {[%emt 0:00:
00]} 8. d4 {[%emt 0:00:00]} cxd4 {[%emt 0:00:00]} 9. Qxd4 {[%emt 0:00:00]} a6 {
[%emt 0:00:00]} 10. Bg5 {[%emt 0:00:00]} Qc7 {[%emt 0:11:25]} 11. Rfd1 {
[%emt 0:00:00]} Rd8 {[%emt 0:00:00]} 12. Rac1 {[%emt 0:00:00]} Ne5 {[%emt 0:00:
00]} 13. b3 {[%emt 0:00:00]} b6 {[%emt 0:00:00]} 14. h3 {[%emt 0:00:00]} Nxf3+
{[%emt 0:00:00]} 15. gxf3 {[%emt 0:00:00]} Bb7 {[%emt 0:00:00]} 16. Be3 {
[%emt 0:00:00]} Qc5 {[%emt 0:00:00]} 17. Qxc5 {[%emt 0:00:00]} bxc5 {[%emt 0:
00:00]} 18. Rd2 {[%emt 0:00:00]} h6 {[%emt 0:00:00]} 19. Rb1 {[%emt 0:00:00]}
Rac8 {[%emt 0:00:00]} 20. Kh2 {[%emt 0:00:00]} d5 {[%emt 0:00:00]} 21. cxd5 {
[%emt 0:00:00]} exd5 {[%emt 0:00:00]} 22. exd5 {[%emt 0:00:00]} Nxd5 {[%emt 0:
00:00]} 23. Nxd5 {[%emt 0:00:00]} Rxd5 {[%emt 0:00:00]} 24. Rxd5 {[%emt 0:00:
00]} Bxd5 {[%emt 0:00:00]} 25. Kg2 {[%emt 0:00:00]} Be6 {[%emt 0:00:00]} 26.
Rd1 {[%emt 0:00:00]} c4 {[%emt 0:00:00]} 27. bxc4 {[%emt 0:00:00]} Rxc4 {
[%emt 0:00:00]} 28. Bb3 {[%emt 0:00:00]} Rc3 {[%emt 0:00:00]} 29. Rc1 {[%emt 0:
00:00]} Rxc1 {[%emt 0:00:00]} 30. Bxc1 {[%emt 0:00:00]} Bxb3 {[%emt 0:00:00]}
31. axb3 {[%emt 0:00:00]} Kh7 {[%emt 0:00:00]} 32. f4 {[%emt 0:00:00]} Kg6 {
[%emt 0:00:00]} 33. Kf3 {[%emt 0:00:00]} Kf5 {[%emt 0:00:00]} 34. Bd2 {[%emt 0:
00:00]} Bd6 {[%emt 0:00:00]} 35. Be3 {[%emt 0:00:00]} Bc7 {[%emt 0:00:00]} 36.
Bd2 {[%emt 0:00:00]} Bb6 {[%emt 0:00:00]} 37. Be3 {[%emt 0:00:00]} Bc7 {
[%emt 0:00:00]} 38. Bd2 {[%emt 0:00:00]} Bb8 {[%emt 0:00:00]} 39. Be3 {[%emt 0:
00:00]} Bd6 {[%emt 0:00:00]} 40. Bd2 {[%emt 0:00:00]} f6 {[%emt 0:00:00]} 41.
Be3 {[%emt 0:00:00]} Bc7 {[%emt 0:00:00]} 42. Bd2 {[%emt 0:00:00]} Bd6 {
[%emt 0:00:00]} 43. Be3 {[%emt 0:00:00]} h5 {[%emt 0:00:00]} 44. Bd2 {[%emt 0:
00:00]} Bc5 {[%emt 0:00:00]} 45. Be3 {[%emt 0:00:00]} Bd6 {[%emt 0:00:00]} 46.
Bd2 {[%emt 0:00:00]} Ba3 {[%emt 0:00:00]} 47. Be3 {[%emt 0:00:00]} Bb2 {
[%emt 0:00:00]} 48. Bd2 {[%emt 0:00:00]} g6 {[%emt 0:00:00]} 49. Be3 {[%emt 0:
00:00]} Ba3 {[%emt 0:00:00]} 50. Bd2 {[%emt 0:00:00]} Bc5 {[%emt 0:00:00]} 51.
Bc1 {[%emt 0:00:00]} Bf8 {[%emt 0:00:00]} 52. Be3 {[%emt 0:00:00]} Bh6 {
[%emt 0:00:00]} 53. Bc1 {[%emt 0:00:00]} Bf8 {[%emt 0:00:00]} 54. Be3 {[%emt 0:
00:00]} Bd6 {[%emt 0:00:00]} 55. Bd2 {[%emt 0:00:00]} g5 {[%emt 0:00:00]} 56.
fxg5 {[%emt 0:00:00]} fxg5 {[%emt 0:00:00]} 57. Be3 {[%emt 0:00:00]} Bf4 {
[%emt 0:00:00]} 58. Bb6 {[%emt 0:00:00]} Be5 {[%emt 0:00:00]} 59. Be3 {[%emt 0:
00:00]} Bc7 {[%emt 0:00:00]} 60. Bd2 {[%emt 0:00:00]} Bb6 {[%emt 0:00:00]} 61.
Bc1 {[%emt 0:00:00]} Bc5 {[%emt 0:00:00]} 62. Bd2 {[%emt 0:00:00]} Be7 {
[%emt 0:00:00]} 63. Bc3 {[%emt 0:00:00]} Bd8 {[%emt 0:00:00]} 64. Bb2 {[%emt 0:
00:00]} g4+ {[%emt 0:00:00]} 65. hxg4+ {[%emt 0:00:00]} hxg4+ {[%emt 0:00:00]}
66. Ke2 {[%emt 0:00:00]} Ke4 {[%emt 0:00:00]} 67. Bc3 {[%emt 0:00:00]} Bb6 {
[%emt 0:00:00]} 68. Bf6 {[%emt 0:00:00]} Bd4 {[%emt 0:00:00]} 69. Bxd4 {
[%emt 0:00:00]} Kxd4 {[%emt 0:00:00]} 70. Kd2 {[%emt 0:00:00]} Ke4 {[%emt 0:00:
00]} 71. Ke2 {[%emt 0:00:00]} Kf4 {[%emt 0:00:00]} 72. Kd2 {[%emt 0:00:00]} Kf3
{[%emt 0:00:00]} 73. Ke1 {[%emt 0:00:00]} Ke4 {[%emt 0:00:00]} 74. Ke2 {
[%emt 0:00:00]} Kd4 {[%emt 0:00:00]} 75. Kd2 {[%emt 0:00:00]} Ke4 {[%emt 0:00:
00]} 76. Ke2 {[%emt 0:00:00]} Kf4 {[%emt 0:00:00]} 77. Kd2 {[%emt 0:00:00]} Ke4
{[%emt 0:00:00]} 78. Ke2 {[%emt 0:00:51]} 1/2-1/2

[Event "Gibraltar Masters 18th"]
[Site "Gibraltar"]
[Date "2020.01.28"]
[Round "8.46"]
[White "Lei, Tingjie"]
[Black "Buksa, Nataliya"]
[Result "1-0"]
[ECO "E05"]
[WhiteElo "2493"]
[BlackElo "2403"]
[PlyCount "143"]
[EventDate "2020.01.21"]
[EventType "swiss"]
[EventRounds "10"]
[EventCountry "GGB"]
[SourceTitle "BritBase"]
[Source "John Saunders"]
[SourceDate "2021.06.05"]
[SourceVersion "1"]
[SourceVersionDate "2021.06.05"]
[SourceQuality "1"]
[TimeControl "40/100:0"]
[WhiteClock "0:00:57"]
[BlackClock "0:02:44"]

1. c4 {[%emt 0:00:00]} e6 {[%emt 0:00:00]} 2. Nf3 {[%emt 0:00:00]} d5 {[%emt 0:
00:00]} 3. g3 {[%emt 0:00:00]} Nf6 {[%emt 0:00:00]} 4. Bg2 {[%emt 0:00:00]} Be7
{[%emt 0:00:00]} 5. O-O {[%emt 0:00:00]} O-O {[%emt 0:00:00]} 6. d4 {[%emt 0:
00:00]} dxc4 {[%emt 0:00:00]} 7. Qc2 {[%emt 0:00:00]} c6 {[%emt 0:00:00]} 8. a4
{[%emt 0:00:00]} b6 {[%emt 0:00:00]} 9. Nbd2 {[%emt 0:00:00]} Bb7 {[%emt 0:00:
00]} 10. Nxc4 {[%emt 0:00:00]} c5 {[%emt 0:00:00]} 11. Rd1 {[%emt 0:00:00]}
Nbd7 {[%emt 0:00:00]} 12. Bf4 {[%emt 0:00:00]} cxd4 {[%emt 0:00:00]} 13. Nxd4 {
[%emt 0:00:00]} Bxg2 {[%emt 0:00:00]} 14. Kxg2 {[%emt 0:00:00]} Rc8 {[%emt 0:
00:00]} 15. Qd3 {[%emt 0:00:00]} Nc5 {[%emt 0:00:00]} 16. Qf3 {[%emt 0:00:00]}
Qd5 {[%emt 0:00:00]} 17. Ne5 {[%emt 0:00:00]} Qxf3+ {[%emt 0:00:00]} 18. Kxf3 {
[%emt 0:00:00]} Nd5 {[%emt 0:00:00]} 19. Nec6 {[%emt 0:00:00]} Bf6 {[%emt 0:00:
00]} 20. Nxa7 {[%emt 0:00:00]} Ra8 {[%emt 0:00:00]} 21. Nac6 {[%emt 0:00:00]}
Bxd4 {[%emt 0:00:00]} 22. Nxd4 {[%emt 0:00:00]} Rxa4 {[%emt 0:00:00]} 23. Bd6 {
[%emt 0:00:00]} Rfa8 {[%emt 0:00:00]} 24. Rac1 {[%emt 0:00:00]} Nb7 {[%emt 0:
00:00]} 25. Ba3 {[%emt 0:00:00]} h6 {[%emt 0:00:00]} 26. Nb5 {[%emt 0:00:00]}
Na5 {[%emt 0:00:00]} 27. Rd4 {[%emt 0:00:00]} Nb3 {[%emt 0:00:00]} 28. Rxa4 {
[%emt 0:00:00]} Rxa4 {[%emt 0:00:00]} 29. Rc8+ {[%emt 0:00:00]} Kh7 {[%emt 0:
00:00]} 30. Nd6 {[%emt 0:00:00]} f5 {[%emt 0:00:00]} 31. e3 {[%emt 0:00:00]}
Nd2+ {[%emt 0:00:00]} 32. Ke2 {[%emt 0:00:00]} Nb1 {[%emt 0:00:00]} 33. Re8 {
[%emt 0:00:00]} Nxa3 {[%emt 0:00:00]} 34. bxa3 {[%emt 0:00:00]} Rxa3 {[%emt 0:
00:00]} 35. Rxe6 {[%emt 0:00:00]} Ra5 {[%emt 0:00:00]} 36. Kf3 {[%emt 0:00:00]}
Nc3 {[%emt 0:00:00]} 37. Re7 {[%emt 0:00:00]} Kg8 {[%emt 0:00:00]} 38. Re8+ {
[%emt 0:00:00]} Kh7 {[%emt 0:00:00]} 39. Re7 {[%emt 0:00:00]} Kg8 {[%emt 0:00:
00]} 40. Rc7 {[%emt 0:00:00]} Nb1 {[%emt 0:01:04]} 41. h4 {[%emt 0:00:00]} Nd2+
{[%emt 0:00:00]} 42. Kf4 {[%emt 0:00:00]} g6 {[%emt 0:00:00]} 43. Nf7 {[%emt 0:
00:00]} Ra4+ {[%emt 0:00:00]} 44. Ke5 {[%emt 0:00:00]} b5 {[%emt 0:00:00]} 45.
Nxh6+ {[%emt 0:00:00]} Kf8 {[%emt 0:00:00]} 46. h5 {[%emt 0:00:00]} Nf3+ {
[%emt 0:00:00]} 47. Kd5 {[%emt 0:00:00]} gxh5 {[%emt 0:00:00]} 48. Nxf5 {
[%emt 0:00:00]} Ra2 {[%emt 0:00:00]} 49. Ke6 {[%emt 0:00:00]} Ra6+ {[%emt 0:00:
00]} 50. Nd6 {[%emt 0:00:00]} Nd2 {[%emt 0:00:00]} 51. Kd5 {[%emt 0:00:00]} b4
{[%emt 0:00:00]} 52. Rc2 {[%emt 0:00:24]} Nf3 {[%emt 0:00:00]} 53. Rb2 {
[%emt 0:00:42]} Ra5+ {[%emt 0:00:00]} 54. Kc4 {[%emt 0:00:02]} Ne5+ {[%emt 0:
00:00]} 55. Kxb4 {[%emt 0:00:07]} Ra1 {[%emt 0:01:39]} 56. Kc3 {[%emt 0:00:45]}
Rc1+ {[%emt 0:00:00]} 57. Kd2 {[%emt 0:00:26]} Rf1 {[%emt 0:00:00]} 58. Rb8+ {
[%emt 0:00:00]} Ke7 {[%emt 0:00:00]} 59. Nf5+ {[%emt 0:00:00]} Kf6 {[%emt 0:00:
00]} 60. Ke2 {[%emt 0:00:00]} Ra1 {[%emt 0:00:00]} 61. Rf8+ {[%emt 0:00:00]}
Kg6 {[%emt 0:00:00]} 62. Ne7+ {[%emt 0:00:14]} Kg7 {[%emt 0:00:00]} 63. Rf5 {
[%emt 0:00:00]} Ra2+ {[%emt 0:00:00]} 64. Kf1 {[%emt 0:00:00]} Ng4 {[%emt 0:00:
00]} 65. Nd5 {[%emt 0:00:00]} Kg6 {[%emt 0:00:00]} 66. e4 {[%emt 0:00:00]} Kh6
{[%emt 0:00:00]} 67. Nf6 {[%emt 0:00:00]} Ra4 {[%emt 0:00:00]} 68. Nxg4+ {
[%emt 0:00:07]} hxg4 {[%emt 0:00:00]} 69. Re5 {[%emt 0:00:00]} Kg6 {[%emt 0:00:
00]} 70. Ke2 {[%emt 0:00:00]} Ra3 {[%emt 0:00:00]} 71. Rd5 {[%emt 0:00:00]} Kf6
{[%emt 0:00:00]} 72. Rd3 {[%emt 0:00:42]} 1-0

[Event "Gibraltar Masters 18th"]
[Site "Gibraltar"]
[Date "2020.01.28"]
[Round "8.47"]
[White "Henderson De La Fuente, Lance"]
[Black "Percivaldi, Martin"]
[Result "1-0"]
[ECO "D27"]
[WhiteElo "2492"]
[BlackElo "2403"]
[PlyCount "117"]
[EventDate "2020.01.21"]
[EventType "swiss"]
[EventRounds "10"]
[EventCountry "GGB"]
[SourceTitle "BritBase"]
[Source "John Saunders"]
[SourceDate "2021.06.05"]
[SourceVersion "1"]
[SourceVersionDate "2021.06.05"]
[SourceQuality "1"]
[TimeControl "40/100:0"]
[WhiteClock "0:48:19"]
[BlackClock "0:27:40"]

1. d4 {[%emt 0:00:00]} d5 {[%emt 0:00:00]} 2. Nf3 {[%emt 0:00:00]} Nf6 {
[%emt 0:00:00]} 3. c4 {[%emt 0:00:00]} c6 {[%emt 0:00:00]} 4. e3 {[%emt 0:00:
00]} a6 {[%emt 0:00:00]} 5. Nc3 {[%emt 0:00:00]} e6 {[%emt 0:00:00]} 6. Bd3 {
[%emt 0:00:00]} dxc4 {[%emt 0:00:00]} 7. Bxc4 {[%emt 0:00:00]} b5 {[%emt 0:00:
00]} 8. Be2 {[%emt 0:00:00]} Bb7 {[%emt 0:00:00]} 9. O-O {[%emt 0:00:00]} c5 {
[%emt 0:00:00]} 10. dxc5 {[%emt 0:00:00]} Nc6 {[%emt 0:00:00]} 11. Qc2 {
[%emt 0:00:00]} Nb4 {[%emt 0:00:00]} 12. Qb3 {[%emt 0:00:00]} Nc6 {[%emt 0:00:
00]} 13. Rd1 {[%emt 0:00:00]} Qb8 {[%emt 0:00:00]} 14. Bd2 {[%emt 0:00:00]}
Bxc5 {[%emt 0:00:00]} 15. Rac1 {[%emt 0:00:00]} Na5 {[%emt 0:00:00]} 16. Qc2 {
[%emt 0:00:00]} Bd6 {[%emt 0:00:00]} 17. Na4 {[%emt 0:00:00]} Nc4 {[%emt 0:00:
00]} 18. Bxc4 {[%emt 0:00:00]} O-O {[%emt 0:00:00]} 19. Be2 {[%emt 0:00:00]}
Be4 {[%emt 0:00:00]} 20. Qb3 {[%emt 0:00:00]} Bd5 {[%emt 0:00:00]} 21. Qc2 {
[%emt 0:00:00]} Be4 {[%emt 0:00:00]} 22. Bd3 {[%emt 0:00:00]} Bxd3 {[%emt 0:00:
00]} 23. Qxd3 {[%emt 0:00:00]} bxa4 {[%emt 0:00:00]} 24. Bc3 {[%emt 0:00:00]}
Rd8 {[%emt 0:00:00]} 25. Qc2 {[%emt 0:00:00]} a3 {[%emt 0:00:00]} 26. Bxf6 {
[%emt 0:00:00]} gxf6 {[%emt 0:00:00]} 27. b3 {[%emt 0:00:00]} Bf8 {[%emt 0:00:
00]} 28. g3 {[%emt 0:00:00]} a5 {[%emt 0:00:00]} 29. Rxd8 {[%emt 0:00:00]} Qxd8
{[%emt 0:00:00]} 30. Nd4 {[%emt 0:00:00]} f5 {[%emt 0:00:00]} 31. Nc6 {[%emt 0:
00:00]} Qb6 {[%emt 0:00:00]} 32. Qc4 {[%emt 0:00:00]} Qb7 {[%emt 0:00:00]} 33.
e4 {[%emt 0:00:00]} fxe4 {[%emt 0:00:00]} 34. Qxe4 {[%emt 0:00:00]} Rc8 {
[%emt 0:00:00]} 35. Rc4 {[%emt 0:00:00]} Kh8 {[%emt 0:00:00]} 36. Qc2 {[%emt 0:
00:00]} Ra8 {[%emt 0:00:00]} 37. Nxa5 {[%emt 0:00:00]} Qd5 {[%emt 0:00:00]} 38.
Nc6 {[%emt 0:00:00]} Rc8 {[%emt 0:00:00]} 39. h3 {[%emt 0:00:00]} h6 {[%emt 0:
00:00]} 40. Kh2 {[%emt 0:00:00]} Rc7 {[%emt 0:00:00]} 41. Qc3+ {[%emt 0:00:00]}
Kh7 {[%emt 0:12:49]} 42. Ne5 {[%emt 0:01:28]} Rxc4 {[%emt 0:00:00]} 43. bxc4 {
[%emt 0:00:00]} Qe4 {[%emt 0:00:00]} 44. Qd3 {[%emt 0:00:00]} Qxd3 {[%emt 0:00:
00]} 45. Nxd3 {[%emt 0:00:00]} Kg7 {[%emt 0:00:00]} 46. Kg2 {[%emt 0:00:00]} f5
{[%emt 0:00:00]} 47. f4 {[%emt 0:00:00]} Kf6 {[%emt 0:00:00]} 48. Kf3 {[%emt 0:
00:00]} Ke7 {[%emt 0:00:00]} 49. Ke3 {[%emt 0:00:00]} Kd6 {[%emt 0:00:00]} 50.
Kd4 {[%emt 0:00:00]} Bg7+ {[%emt 0:00:00]} 51. Ne5 {[%emt 0:00:00]} Bxe5+ {
[%emt 0:00:00]} 52. fxe5+ {[%emt 0:00:00]} Kc6 {[%emt 0:00:00]} 53. c5 {
[%emt 0:00:00]} Kb5 {[%emt 0:00:00]} 54. g4 {[%emt 0:00:00]} fxg4 {[%emt 0:00:
00]} 55. hxg4 {[%emt 0:00:00]} Ka6 {[%emt 0:00:00]} 56. Kc4 {[%emt 0:00:00]}
Ka5 {[%emt 0:00:00]} 57. c6 {[%emt 0:00:00]} Kb6 {[%emt 0:00:00]} 58. c7 {
[%emt 0:00:00]} Kb7 {[%emt 0:00:00]} 59. Kb5 {[%emt 0:00:00]} 1-0

[Event "Gibraltar Masters 18th"]
[Site "Gibraltar"]
[Date "2020.01.28"]
[Round "8.48"]
[White "Raja, Harshit"]
[Black "Gschnitzer, Adrian"]
[Result "1-0"]
[ECO "A58"]
[WhiteElo "2482"]
[BlackElo "2388"]
[PlyCount "77"]
[EventDate "2020.01.21"]
[EventType "swiss"]
[EventRounds "10"]
[EventCountry "GGB"]
[SourceTitle "BritBase"]
[Source "John Saunders"]
[SourceDate "2021.06.05"]
[SourceVersion "1"]
[SourceVersionDate "2021.06.05"]
[SourceQuality "1"]
[TimeControl "40/100:0"]
[WhiteClock "0:02:15"]
[BlackClock "0:44:50"]

1. d4 {[%emt 0:00:00]} Nf6 {[%emt 0:00:00]} 2. c4 {[%emt 0:00:00]} c5 {[%emt 0:
00:00]} 3. d5 {[%emt 0:00:00]} b5 {[%emt 0:00:00]} 4. cxb5 {[%emt 0:00:00]} a6
{[%emt 0:00:00]} 5. bxa6 {[%emt 0:00:00]} g6 {[%emt 0:00:00]} 6. Nc3 {[%emt 0:
00:00]} Bg7 {[%emt 0:00:00]} 7. e4 {[%emt 0:00:00]} O-O {[%emt 0:00:00]} 8. a7
{[%emt 0:00:00]} Rxa7 {[%emt 0:00:00]} 9. Nf3 {[%emt 0:00:00]} e6 {[%emt 0:00:
00]} 10. Be2 {[%emt 0:00:00]} exd5 {[%emt 0:00:00]} 11. exd5 {[%emt 0:00:00]}
d6 {[%emt 0:00:00]} 12. O-O {[%emt 0:00:00]} Na6 {[%emt 0:00:00]} 13. Nb5 {
[%emt 0:00:00]} Rd7 {[%emt 0:00:00]} 14. Bc4 {[%emt 0:00:00]} Bb7 {[%emt 0:00:
00]} 15. Qb3 {[%emt 0:00:00]} Qa8 {[%emt 0:00:00]} 16. Rd1 {[%emt 0:00:00]} Nc7
{[%emt 0:00:00]} 17. Nxc7 {[%emt 0:00:00]} Rxc7 {[%emt 0:00:00]} 18. Bf4 {
[%emt 0:00:00]} Rd7 {[%emt 0:00:00]} 19. Qd3 {[%emt 0:00:00]} Nh5 {[%emt 0:00:
00]} 20. Bd2 {[%emt 0:00:00]} Bxb2 {[%emt 0:00:00]} 21. Rab1 {[%emt 0:00:00]}
Bg7 {[%emt 0:00:00]} 22. Rb6 {[%emt 0:00:00]} h6 {[%emt 0:00:00]} 23. Qb3 {
[%emt 0:00:00]} Nf6 {[%emt 0:00:00]} 24. Bf4 {[%emt 0:00:00]} Rfd8 {[%emt 0:00:
00]} 25. Bxd6 {[%emt 0:00:00]} Ne4 {[%emt 0:00:00]} 26. Be5 {[%emt 0:00:00]}
Bxd5 {[%emt 0:00:00]} 27. Re1 {[%emt 0:00:00]} Bxe5 {[%emt 0:00:00]} 28. Nxe5 {
[%emt 0:00:00]} Qa5 {[%emt 0:00:00]} 29. Rxg6+ {[%emt 0:00:00]} Kh7 {[%emt 0:
00:00]} 30. Rxh6+ {[%emt 0:00:00]} Kxh6 {[%emt 0:00:00]} 31. Qh3+ {[%emt 0:00:
00]} Kg7 {[%emt 0:00:00]} 32. Qg4+ {[%emt 0:00:00]} Kh8 {[%emt 0:00:00]} 33.
Qh5+ {[%emt 0:00:00]} Kg7 {[%emt 0:00:00]} 34. Qg4+ {[%emt 0:00:00]} Kh8 {
[%emt 0:00:00]} 35. Re3 {[%emt 0:00:00]} f5 {[%emt 0:00:00]} 36. Rh3+ {[%emt 0:
00:00]} Rh7 {[%emt 0:00:00]} 37. Rxh7+ {[%emt 0:00:00]} Kxh7 {[%emt 0:00:00]}
38. Qg6+ {[%emt 0:00:00]} Kh8 {[%emt 0:00:00]} 39. Qh6+ {[%emt 0:00:00]} 1-0

[Event "Gibraltar Masters 18th"]
[Site "Gibraltar"]
[Date "2020.01.28"]
[Round "8.49"]
[White "Pogonina, Natalija"]
[Black "Lombaers, Peter"]
[Result "1/2-1/2"]
[ECO "D85"]
[WhiteElo "2479"]
[BlackElo "2383"]
[PlyCount "75"]
[EventDate "2020.01.21"]
[EventType "swiss"]
[EventRounds "10"]
[EventCountry "GGB"]
[SourceTitle "BritBase"]
[Source "John Saunders"]
[SourceDate "2021.06.05"]
[SourceVersion "1"]
[SourceVersionDate "2021.06.05"]
[SourceQuality "1"]
[TimeControl "40/100:0"]
[WhiteClock "0:03:19"]
[BlackClock "0:02:54"]

1. d4 {[%emt 0:00:00]} Nf6 {[%emt 0:00:00]} 2. c4 {[%emt 0:00:00]} g6 {[%emt 0:
00:00]} 3. Nc3 {[%emt 0:00:00]} d5 {[%emt 0:00:00]} 4. cxd5 {[%emt 0:00:00]}
Nxd5 {[%emt 0:00:00]} 5. e4 {[%emt 0:00:00]} Nxc3 {[%emt 0:00:00]} 6. bxc3 {
[%emt 0:00:00]} Bg7 {[%emt 0:00:00]} 7. Nf3 {[%emt 0:00:00]} c5 {[%emt 0:00:00]
} 8. Bb5+ {[%emt 0:00:00]} Nc6 {[%emt 0:00:00]} 9. O-O {[%emt 0:00:00]} a6 {
[%emt 0:00:00]} 10. Bxc6+ {[%emt 0:00:00]} bxc6 {[%emt 0:00:00]} 11. Ba3 {
[%emt 0:00:00]} cxd4 {[%emt 0:00:00]} 12. cxd4 {[%emt 0:00:00]} O-O {[%emt 0:
00:00]} 13. h3 {[%emt 0:00:00]} Qa5 {[%emt 0:00:00]} 14. Qb3 {[%emt 0:00:00]}
Be6 {[%emt 0:00:00]} 15. Qe3 {[%emt 0:00:00]} f5 {[%emt 0:00:00]} 16. e5 {
[%emt 0:00:00]} Qc7 {[%emt 0:00:00]} 17. Qc3 {[%emt 0:00:00]} Bh6 {[%emt 0:00:
00]} 18. Rfb1 {[%emt 0:00:00]} Rfb8 {[%emt 0:00:00]} 19. Rd1 {[%emt 0:00:00]}
Rb5 {[%emt 0:00:00]} 20. Ne1 {[%emt 0:00:00]} Bd5 {[%emt 0:00:00]} 21. Nd3 {
[%emt 0:00:00]} a5 {[%emt 0:00:00]} 22. Bc1 {[%emt 0:00:00]} Bf8 {[%emt 0:00:
00]} 23. Nf4 {[%emt 0:00:00]} Qd7 {[%emt 0:00:00]} 24. Ba3 {[%emt 0:00:00]} Bh6
{[%emt 0:00:00]} 25. Nxd5 {[%emt 0:00:00]} cxd5 {[%emt 0:00:00]} 26. Rab1 {
[%emt 0:00:00]} Rab8 {[%emt 0:00:00]} 27. Rxb5 {[%emt 0:00:00]} Rxb5 {[%emt 0:
00:00]} 28. Bc5 {[%emt 0:00:00]} Qb7 {[%emt 0:00:00]} 29. g3 {[%emt 0:00:00]}
Rb1 {[%emt 0:00:00]} 30. Qe1 {[%emt 0:00:00]} Rxd1 {[%emt 0:00:00]} 31. Qxd1 {
[%emt 0:00:00]} Kf7 {[%emt 0:00:00]} 32. Qe1 {[%emt 0:00:00]} a4 {[%emt 0:00:
00]} 33. Kg2 {[%emt 0:00:00]} Bf8 {[%emt 0:00:00]} 34. Qa5 {[%emt 0:00:00]} Qb1
{[%emt 0:00:02]} 35. Qxa4 {[%emt 0:00:00]} Qe4+ {[%emt 0:00:00]} 36. Kg1 {
[%emt 0:00:00]} Qe1+ {[%emt 0:00:00]} 37. Kg2 {[%emt 0:00:00]} Qe4+ {[%emt 0:
00:00]} 38. Kg1 {[%emt 0:00:00]} 1/2-1/2

[Event "Gibraltar Masters 18th"]
[Site "Gibraltar"]
[Date "2020.01.28"]
[Round "8.50"]
[White "Wemmers, Xander"]
[Black "Abergel, Thal"]
[Result "1-0"]
[ECO "A42"]
[WhiteElo "2380"]
[BlackElo "2478"]
[PlyCount "111"]
[EventDate "2020.01.21"]
[EventType "swiss"]
[EventRounds "10"]
[EventCountry "GGB"]
[SourceTitle "BritBase"]
[Source "John Saunders"]
[SourceDate "2021.06.05"]
[SourceVersion "1"]
[SourceVersionDate "2021.06.05"]
[SourceQuality "1"]
[TimeControl "40/100:0"]
[WhiteClock "0:10:47"]
[BlackClock "0:31:43"]

1. d4 {[%emt 0:00:00]} d6 {[%emt 0:00:00]} 2. c4 {[%emt 0:00:00]} g6 {[%emt 0:
00:00]} 3. e4 {[%emt 0:00:00]} Bg7 {[%emt 0:00:00]} 4. Nc3 {[%emt 0:00:00]} Nc6
{[%emt 0:00:00]} 5. Be3 {[%emt 0:00:00]} e5 {[%emt 0:00:00]} 6. Nge2 {[%emt 0:
00:00]} Nh6 {[%emt 0:00:00]} 7. d5 {[%emt 0:00:00]} Ne7 {[%emt 0:00:00]} 8. f3
{[%emt 0:00:00]} f5 {[%emt 0:00:00]} 9. Qd2 {[%emt 0:00:00]} Nf7 {[%emt 0:00:
00]} 10. O-O-O {[%emt 0:00:00]} Bd7 {[%emt 0:00:00]} 11. Kb1 {[%emt 0:00:00]}
a6 {[%emt 0:00:00]} 12. c5 {[%emt 0:00:00]} dxc5 {[%emt 0:00:00]} 13. Bxc5 {
[%emt 0:00:00]} Nd6 {[%emt 0:00:00]} 14. Nc1 {[%emt 0:00:00]} b6 {[%emt 0:00:
00]} 15. Be3 {[%emt 0:00:00]} Qb8 {[%emt 0:00:00]} 16. Bd3 {[%emt 0:00:00]} a5
{[%emt 0:00:00]} 17. g4 {[%emt 0:00:00]} fxg4 {[%emt 0:00:00]} 18. fxg4 {
[%emt 0:00:00]} Bxg4 {[%emt 0:00:00]} 19. Rdf1 {[%emt 0:00:00]} h6 {[%emt 0:00:
00]} 20. Qg2 {[%emt 0:00:00]} Qc8 {[%emt 0:00:00]} 21. h3 {[%emt 0:00:00]} Bd7
{[%emt 0:00:00]} 22. Be2 {[%emt 0:00:00]} Qb7 {[%emt 0:00:00]} 23. Nd3 {
[%emt 0:00:00]} O-O-O {[%emt 0:00:00]} 24. Qg3 {[%emt 0:00:00]} Nxe4 {[%emt 0:
00:00]} 25. Nxe4 {[%emt 0:00:00]} Bf5 {[%emt 0:00:00]} 26. Bg4 {[%emt 0:00:00]}
Qxd5 {[%emt 0:00:00]} 27. Ndf2 {[%emt 0:00:00]} Kb8 {[%emt 0:00:00]} 28. Bxf5 {
[%emt 0:00:00]} Nxf5 {[%emt 0:00:00]} 29. Qf3 {[%emt 0:00:00]} Rhf8 {[%emt 0:
00:00]} 30. Rd1 {[%emt 0:00:00]} Nd4 {[%emt 0:00:00]} 31. Qg4 {[%emt 0:00:00]}
Qf7 {[%emt 0:00:00]} 32. Rhg1 {[%emt 0:00:00]} g5 {[%emt 0:00:00]} 33. Bxd4 {
[%emt 0:00:00]} exd4 {[%emt 0:00:00]} 34. h4 {[%emt 0:00:00]} Qg6 {[%emt 0:00:
00]} 35. Ka1 {[%emt 0:00:00]} Rf5 {[%emt 0:00:00]} 36. hxg5 {[%emt 0:00:00]}
hxg5 {[%emt 0:00:00]} 37. Nd3 {[%emt 0:00:00]} Be5 {[%emt 0:00:00]} 38. Ng3 {
[%emt 0:00:00]} Bxg3 {[%emt 0:00:00]} 39. Qxg3 {[%emt 0:00:00]} Qf6 {[%emt 0:
00:00]} 40. a3 {[%emt 0:00:00]} Kb7 {[%emt 0:00:00]} 41. Qg2+ {[%emt 0:00:00]}
Qc6 {[%emt 0:00:00]} 42. Qg4 {[%emt 0:00:00]} Qd5 {[%emt 0:00:00]} 43. Rge1 {
[%emt 0:00:00]} Rdf8 {[%emt 0:00:00]} 44. Qg3 {[%emt 0:00:00]} R8f7 {[%emt 0:
00:00]} 45. Rc1 {[%emt 0:00:00]} c5 {[%emt 0:00:00]} 46. Ne5 {[%emt 0:00:00]}
Re7 {[%emt 0:00:00]} 47. Nc4 {[%emt 0:00:00]} Rxe1 {[%emt 0:00:00]} 48. Qxe1 {
[%emt 0:00:00]} Rf7 {[%emt 0:00:00]} 49. Qe8 {[%emt 0:00:00]} Rd7 {[%emt 0:00:
00]} 50. Qg6 {[%emt 0:00:00]} d3 {[%emt 0:00:00]} 51. Qxb6+ {[%emt 0:00:00]}
Kc8 {[%emt 0:00:00]} 52. Qxa5 {[%emt 0:00:00]} d2 {[%emt 0:00:00]} 53. Nxd2 {
[%emt 0:00:00]} Qxd2 {[%emt 0:00:00]} 54. Rxc5+ {[%emt 0:00:00]} Kb7 {[%emt 0:
00:00]} 55. Rb5+ {[%emt 0:00:00]} Kc6 {[%emt 0:00:00]} 56. Qb6# {[%emt 0:00:00]
} 1-0